[Event "Early-Titled-Tuesday-Blitz-October-10-2023"]
[Site "Chess.com"]
[Date "2023.10.10"]
[Round "4"]
[White "SchachmattTV_Tobi"]
[Black "Dedic8"]
[Result "0-1"]
[WhiteElo "2596"]
[BlackElo "2841"]
[TimeControl "180+1"]
[EndTime "8:39:07 PDT"]
[Termination "Dedic8 won by resignation"]

1. d4 {[%clk 0:03:00.9]} 1... Nf6 {[%clk 0:03:00]} 2. c4 {[%clk 0:02:59.3]} 2...
e6 {[%clk 0:03:00.7]} 3. Nc3 {[%clk 0:02:56.4]} 3... Bb4 {[%clk 0:03:01.1]} 4.
e3 {[%clk 0:02:56.7]} 4... O-O {[%clk 0:02:57.8]} 5. Bd2 {[%clk 0:02:55.8]} 5...
b6 {[%clk 0:02:57.4]} 6. Bd3 {[%clk 0:02:49.4]} 6... d5 {[%clk 0:02:56.1]} 7.
Nf3 {[%clk 0:02:48.2]} 7... Re8 {[%clk 0:02:53.4]} 8. Rc1 {[%clk 0:02:44.4]}
8... c5 {[%clk 0:02:48.6]} 9. O-O {[%clk 0:02:36.2]} 9... Bb7 {[%clk 0:02:41.1]}
10. a3 {[%clk 0:02:33.6]} 10... Bxc3 {[%clk 0:02:41.1]} 11. Bxc3 {[%clk
0:02:34.5]} 11... dxc4 {[%clk 0:02:31.6]} 12. Bxc4 {[%clk 0:02:32.5]} 12... Nbd7
{[%clk 0:02:32]} 13. b4 {[%clk 0:02:14.3]} 13... cxd4 {[%clk 0:02:17.3]} 14.
Nxd4 {[%clk 0:02:09.4]} 14... Ne5 {[%clk 0:01:54.1]} 15. Be2 {[%clk 0:02:02.1]}
15... Rc8 {[%clk 0:01:08.4]} 16. Nf3 {[%clk 0:01:49.3]} 16... Nxf3+ {[%clk
0:01:04.5]} 17. Bxf3 {[%clk 0:01:49.2]} 17... Qxd1 {[%clk 0:01:04.6]} 18. Rfxd1
{[%clk 0:01:42.9]} 18... Bxf3 {[%clk 0:01:05]} 19. gxf3 {[%clk 0:01:43.8]} 19...
Nd5 {[%clk 0:01:05.9]} 20. Bd4 {[%clk 0:01:38.4]} 20... f6 {[%clk 0:01:05.6]}
21. f4 {[%clk 0:01:38]} 21... Kf7 {[%clk 0:00:54.1]} 22. Kg2 {[%clk 0:01:37.5]}
22... a6 {[%clk 0:00:44.5]} 23. Kf3 {[%clk 0:01:33.7]} 23... f5 {[%clk
0:00:44.2]} 24. h4 {[%clk 0:01:18.3]} 24... b5 {[%clk 0:00:43.7]} 25. Rc5 {[%clk
0:01:12.9]} 25... Rxc5 {[%clk 0:00:43]} 26. Bxc5 {[%clk 0:01:13.8]} 26... Rc8
{[%clk 0:00:41.7]} 27. e4 {[%clk 0:01:04.8]} 27... fxe4+ {[%clk 0:00:41.8]} 28.
Kxe4 {[%clk 0:01:05.7]} 28... a5 {[%clk 0:00:31.2]} 29. Ke5 {[%clk 0:00:43.3]}
29... Nf6 {[%clk 0:00:20.3]} 30. f5 {[%clk 0:00:38.9]} 30... exf5 {[%clk
0:00:20]} 31. Kxf5 {[%clk 0:00:39.1]} 31... axb4 {[%clk 0:00:20.7]} 32. axb4
{[%clk 0:00:39.9]} 32... Ra8 {[%clk 0:00:15.8]} 33. Rd6 {[%clk 0:00:39.7]} 33...
Ra3 {[%clk 0:00:13.4]} 34. f4 {[%clk 0:00:27.4]} 34... Rc3 {[%clk 0:00:10.4]}
35. Rb6 {[%clk 0:00:25.4]} 35... Rd3 {[%clk 0:00:10.5]} 36. Rb7+ {[%clk
0:00:18.8]} 36... Rd7 {[%clk 0:00:10.6]} 37. Rxd7+ {[%clk 0:00:15.7]} 37... Nxd7
{[%clk 0:00:11.5]} 38. Bd4 {[%clk 0:00:16.4]} 38... g6+ {[%clk 0:00:11.4]} 39.
Ke4 {[%clk 0:00:16]} 39... Ke6 {[%clk 0:00:12.3]} 40. Bc3 {[%clk 0:00:15.9]}
40... Nb8 {[%clk 0:00:12.1]} 41. Bd2 {[%clk 0:00:14.8]} 41... Nc6 {[%clk
0:00:12.6]} 42. Bc3 {[%clk 0:00:14.7]} 42... Ne7 {[%clk 0:00:13.5]} 43. Bd2
{[%clk 0:00:14.2]} 43... Nf5 {[%clk 0:00:13.7]} 44. Be1 {[%clk 0:00:14.7]} 44...
Kd6 {[%clk 0:00:14.3]} 45. h5 {[%clk 0:00:12.8]} 45... Ke6 {[%clk 0:00:12.3]}
46. hxg6 {[%clk 0:00:13.5]} 46... hxg6 {[%clk 0:00:13]} 47. Bc3 {[%clk
0:00:14.1]} 47... Kd6 {[%clk 0:00:12.6]} 48. Be5+ {[%clk 0:00:13.7]} 48... Ke6
{[%clk 0:00:13.2]} 49. Bb8 {[%clk 0:00:12.8]} 49... Ne7 {[%clk 0:00:11.1]} 50.
Be5 {[%clk 0:00:11.2]} 50... Nc6 {[%clk 0:00:11.5]} 51. Bc3 {[%clk 0:00:11.9]}
51... Kd6 {[%clk 0:00:11.5]} 52. f5 {[%clk 0:00:11.8]} 52... gxf5+ {[%clk
0:00:12.4]} 53. Kxf5 {[%clk 0:00:12.7]} 53... Kd5 {[%clk 0:00:13.3]} 54. Be1
{[%clk 0:00:09.5]} 54... Kc4 {[%clk 0:00:12.6]} 55. Ke4 {[%clk 0:00:10.2]} 55...
Nxb4 {[%clk 0:00:13.5]} 56. Ke3 {[%clk 0:00:10.4]} 56... Nc2+ {[%clk 0:00:13.9]}
57. Kd2 {[%clk 0:00:10.5]} 57... Nxe1 {[%clk 0:00:14.8]} 58. Kxe1 {[%clk
0:00:11.4]} 58... Kc3 {[%clk 0:00:15.7]} 59. Kd1 {[%clk 0:00:11.8]} 59... Kb2
{[%clk 0:00:16.4]} 60. Kd2 {[%clk 0:00:12.1]} 60... b4 {[%clk 0:00:17.3]} 61.
Kd1 {[%clk 0:00:12]} 61... b3 {[%clk 0:00:18.2]} 62. Kd2 {[%clk 0:00:12.5]}
62... Ka2 {[%clk 0:00:19.1]} 63. Kc1 {[%clk 0:00:13]} 63... b2+ {[%clk 0:00:20]}
64. Kd2 {[%clk 0:00:13.5]} 64... b1=Q {[%clk 0:00:19.9]} 65. Ke3 {[%clk
0:00:12]} 65... Kb3 {[%clk 0:00:19.7]} 0-1

[Event "Early-Titled-Tuesday-Blitz-October-10-2023"]
[Site "Chess.com"]
[Date "2023.10.10"]
[Round "4"]
[White "InitiatingASC"]
[Black "slorovel"]
[Result "1/2-1/2"]
[WhiteElo "2337"]
[BlackElo "2506"]
[TimeControl "180+1"]
[EndTime "8:39:07 PDT"]
[Termination "Game drawn by repetition"]

1. d4 {[%clk 0:02:56.8]} 1... Nf6 {[%clk 0:02:57.3]} 2. c4 {[%clk 0:02:51]} 2...
e6 {[%clk 0:02:56.8]} 3. Nc3 {[%clk 0:02:50.4]} 3... d5 {[%clk 0:02:51.1]} 4.
Nf3 {[%clk 0:02:48.1]} 4... Bb4 {[%clk 0:02:31.8]} 5. e3 {[%clk 0:02:47.3]} 5...
O-O {[%clk 0:02:23.4]} 6. Bd3 {[%clk 0:02:46.6]} 6... b6 {[%clk 0:02:06.6]} 7.
O-O {[%clk 0:02:45.9]} 7... Bb7 {[%clk 0:01:51.3]} 8. cxd5 {[%clk 0:02:46]} 8...
exd5 {[%clk 0:01:51.3]} 9. Ne5 {[%clk 0:02:45.1]} 9... Nbd7 {[%clk 0:01:50.5]}
10. f4 {[%clk 0:02:41.8]} 10... c5 {[%clk 0:01:49.3]} 11. Ne2 {[%clk 0:02:40.2]}
11... cxd4 {[%clk 0:01:48.2]} 12. exd4 {[%clk 0:02:40.1]} 12... Ne4 {[%clk
0:01:48.3]} 13. Ng3 {[%clk 0:02:25.1]} 13... f6 {[%clk 0:01:44.1]} 14. Nxd7
{[%clk 0:02:14.9]} 14... Qxd7 {[%clk 0:01:42.4]} 15. Qh5 {[%clk 0:02:12.9]}
15... Qf7 {[%clk 0:01:30.5]} 16. Qxf7+ {[%clk 0:02:03]} 16... Kxf7 {[%clk
0:01:28.3]} 17. Nxe4 {[%clk 0:01:58]} 17... dxe4 {[%clk 0:01:29.2]} 18. Bc4+
{[%clk 0:01:58.7]} 18... Ke7 {[%clk 0:01:27]} 19. f5 {[%clk 0:01:47.6]} 19...
Rfd8 {[%clk 0:01:21.5]} 20. Be3 {[%clk 0:01:43.5]} 20... Rac8 {[%clk 0:01:06.9]}
21. Rac1 {[%clk 0:01:40.4]} 21... Bd6 {[%clk 0:00:56]} 22. Be6 {[%clk
0:01:31.8]} 22... Rxc1 {[%clk 0:00:55.1]} 23. Rxc1 {[%clk 0:01:32.7]} 23... g6
{[%clk 0:00:49.3]} 24. g4 {[%clk 0:01:15.8]} 24... g5 {[%clk 0:00:49.4]} 25. d5
{[%clk 0:00:51.1]} 25... h5 {[%clk 0:00:47.1]} 26. gxh5 {[%clk 0:00:27.1]} 26...
Rh8 {[%clk 0:00:45]} 27. Rc4 {[%clk 0:00:27.5]} 27... Rxh5 {[%clk 0:00:40]} 28.
Rxe4 {[%clk 0:00:27.3]} 28... Bxh2+ {[%clk 0:00:38.2]} 29. Kg2 {[%clk
0:00:20.3]} 29... Kd6 {[%clk 0:00:38.2]} 30. Bd2 {[%clk 0:00:13.4]} 30... a5
{[%clk 0:00:34.5]} 31. b4 {[%clk 0:00:12.9]} 31... Be5 {[%clk 0:00:33.3]} 32.
Re2 {[%clk 0:00:10.7]} 32... Bxd5+ {[%clk 0:00:26.4]} 33. Bxd5 {[%clk
0:00:10.3]} 33... Kxd5 {[%clk 0:00:27.3]} 34. bxa5 {[%clk 0:00:10.7]} 34... bxa5
{[%clk 0:00:23.2]} 35. Bxa5 {[%clk 0:00:10.2]} 35... Rh2+ {[%clk 0:00:22.6]} 36.
Kf3 {[%clk 0:00:10.5]} 36... Rxe2 {[%clk 0:00:23.5]} 37. Kxe2 {[%clk 0:00:10.7]}
37... Ke4 {[%clk 0:00:24.2]} 38. Bb6 {[%clk 0:00:07]} 38... Kxf5 {[%clk
0:00:24.2]} 39. a4 {[%clk 0:00:07.7]} 39... Ke6 {[%clk 0:00:19.2]} 40. a5 {[%clk
0:00:08]} 40... Kd7 {[%clk 0:00:19.5]} 41. a6 {[%clk 0:00:07.9]} 41... Kc6
{[%clk 0:00:18]} 42. a7 {[%clk 0:00:08.1]} 42... Kb7 {[%clk 0:00:18]} 43. Kf3
{[%clk 0:00:08.5]} 43... f5 {[%clk 0:00:15.4]} 44. Kg2 {[%clk 0:00:07]} 44... g4
{[%clk 0:00:15.3]} 45. Be3 {[%clk 0:00:05.9]} 45... f4 {[%clk 0:00:14.4]} 46.
Bf2 {[%clk 0:00:06]} 46... f3+ {[%clk 0:00:13]} 47. Kg1 {[%clk 0:00:06]} 47...
g3 {[%clk 0:00:13.1]} 48. Be3 {[%clk 0:00:05.8]} 48... Ka8 {[%clk 0:00:04]} 49.
Kf1 {[%clk 0:00:05.9]} 49... Kb7 {[%clk 0:00:03.2]} 50. Kg1 {[%clk 0:00:06.3]}
50... g2 {[%clk 0:00:01.7]} 51. Bf2 {[%clk 0:00:05.7]} 51... Bf4 {[%clk
0:00:01.7]} 52. Bd4 {[%clk 0:00:03.7]} 52... Bd6 {[%clk 0:00:01.8]} 53. Be3
{[%clk 0:00:04.2]} 53... Ka8 {[%clk 0:00:02.3]} 54. Bf2 {[%clk 0:00:04.6]} 54...
Bc7 {[%clk 0:00:02.4]} 55. Be3 {[%clk 0:00:05]} 55... Bg3 {[%clk 0:00:03]} 56.
Bd4 {[%clk 0:00:05.2]} 56... Kb7 {[%clk 0:00:01.5]} 57. Be3 {[%clk 0:00:05.3]}
57... Be5 {[%clk 0:00:01.4]} 58. Bf2 {[%clk 0:00:05.6]} 58... Bc7 {[%clk
0:00:02]} 59. Be3 {[%clk 0:00:05.8]} 59... Ka8 {[%clk 0:00:02.9]} 60. Bf2 {[%clk
0:00:05.9]} 60... Ba5 {[%clk 0:00:03.2]} 61. Be3 {[%clk 0:00:06.1]} 61... Be1
{[%clk 0:00:03.3]} 62. Bd4 {[%clk 0:00:06.5]} 62... Kb7 {[%clk 0:00:03.4]} 63.
Be3 {[%clk 0:00:06.8]} 63... Bc3 {[%clk 0:00:03.3]} 64. Bf2 {[%clk 0:00:07]}
64... Be5 {[%clk 0:00:03.1]} 65. Be3 {[%clk 0:00:07.3]} 65... Bc7 {[%clk
0:00:01.9]} 66. Bc5 {[%clk 0:00:07.3]} 66... Ba5 {[%clk 0:00:01.1]} 67. Bf2
{[%clk 0:00:07.4]} 67... Bc3 {[%clk 0:00:01.7]} 68. Be3 {[%clk 0:00:07.6]} 68...
Be5 {[%clk 0:00:02.1]} 1/2-1/2

[Event "Early-Titled-Tuesday-Blitz-October-10-2023"]
[Site "Chess.com"]
[Date "2023.10.10"]
[Round "4"]
[White "VOneChess"]
[Black "chenrip"]
[Result "0-1"]
[WhiteElo "2268"]
[BlackElo "2496"]
[TimeControl "180+1"]
[EndTime "8:39:09 PDT"]
[Termination "chenrip won on time"]

1. e4 {[%clk 0:03:00.9]} 1... e6 {[%clk 0:02:54.7]} 2. d4 {[%clk 0:02:59.9]}
2... d5 {[%clk 0:02:55.3]} 3. Nd2 {[%clk 0:02:59.2]} 3... dxe4 {[%clk
0:02:54.4]} 4. Nxe4 {[%clk 0:02:59.8]} 4... Nd7 {[%clk 0:02:54.9]} 5. Nf3 {[%clk
0:02:59.5]} 5... Ngf6 {[%clk 0:02:53.4]} 6. Nxf6+ {[%clk 0:02:59.2]} 6... gxf6
{[%clk 0:02:53.5]} 7. Bd3 {[%clk 0:02:59.9]} 7... Be7 {[%clk 0:02:49.3]} 8. Bf4
{[%clk 0:02:59.4]} 8... f5 {[%clk 0:02:47.9]} 9. c3 {[%clk 0:02:58]} 9... b6
{[%clk 0:02:47.9]} 10. Qe2 {[%clk 0:02:56.2]} 10... Bb7 {[%clk 0:02:47.9]} 11.
O-O-O {[%clk 0:02:56.7]} 11... Nf6 {[%clk 0:02:46]} 12. Rhe1 {[%clk 0:02:53.2]}
12... Nd5 {[%clk 0:02:37]} 13. Be5 {[%clk 0:02:17.7]} 13... Rg8 {[%clk
0:02:33.3]} 14. c4 {[%clk 0:02:01]} 14... Nb4 {[%clk 0:02:32.8]} 15. Bxf5 {[%clk
0:02:01.1]} 15... Qd7 {[%clk 0:02:13.9]} 16. Be4 {[%clk 0:01:44.3]} 16... O-O-O
{[%clk 0:02:09]} 17. a3 {[%clk 0:01:35.4]} 17... Nc6 {[%clk 0:02:07.3]} 18. d5
{[%clk 0:01:28.4]} 18... Nxe5 {[%clk 0:01:46.1]} 19. Nxe5 {[%clk 0:00:51.7]}
19... Bg5+ {[%clk 0:01:42.3]} 20. Kb1 {[%clk 0:00:46.1]} 20... Qe7 {[%clk
0:01:35]} 21. dxe6 {[%clk 0:00:40.7]} 21... Rxd1+ {[%clk 0:01:31.2]} 22. Rxd1
{[%clk 0:00:40.5]} 22... Qxe6 {[%clk 0:01:26.5]} 23. Bxb7+ {[%clk 0:00:38.7]}
23... Kxb7 {[%clk 0:01:26.2]} 24. Qe4+ {[%clk 0:00:38.6]} 24... Ka6 {[%clk
0:01:16.1]} 25. c5 {[%clk 0:00:21.9]} 25... Re8 {[%clk 0:01:06.2]} 26. Qa4+
{[%clk 0:00:11.4]} 26... Kb7 {[%clk 0:01:05.9]} 27. c6+ {[%clk 0:00:11.8]} 27...
Kb8 {[%clk 0:01:02.5]} 28. Nd7+ {[%clk 0:00:11]} 28... Ka8 {[%clk 0:01:00.7]}
29. Qa6 {[%clk 0:00:09.8]} 29... Qxc6 {[%clk 0:00:58.3]} 30. Qd3 {[%clk
0:00:02.9]} 30... Qe4 {[%clk 0:00:53.6]} 31. Qxe4+ {[%clk 0:00:02.4]} 31... Rxe4
{[%clk 0:00:53.3]} 32. g3 {[%clk 0:00:01.3]} 32... Kb7 {[%clk 0:00:50.9]} 33. f4
{[%clk 0:00:01.8]} 33... Be7 {[%clk 0:00:50.2]} 34. Ne5 {[%clk 0:00:02.4]} 34...
f6 {[%clk 0:00:48.2]} 35. Nf3 {[%clk 0:00:02.4]} 35... Re3 {[%clk 0:00:45.7]}
36. Nh4 {[%clk 0:00:02.6]} 36... Re2 {[%clk 0:00:45]} 37. Nf5 {[%clk 0:00:03.3]}
37... Bc5 {[%clk 0:00:45]} 38. h4 {[%clk 0:00:03.5]} 38... Rg2 {[%clk
0:00:40.4]} 39. Ka2 {[%clk 0:00:03.7]} 39... Kc6 {[%clk 0:00:35.8]} 40. Kb3
{[%clk 0:00:03.6]} 40... a5 {[%clk 0:00:35.7]} 41. Kc4 {[%clk 0:00:03.6]} 41...
b5+ {[%clk 0:00:35.9]} 42. Kb3 {[%clk 0:00:03.9]} 42... a4+ {[%clk 0:00:36]} 43.
Kc3 {[%clk 0:00:03.8]} 43... Bb6 {[%clk 0:00:33.9]} 44. Rd3 {[%clk 0:00:04.2]}
44... Ba5+ {[%clk 0:00:33.9]} 45. Kd4 {[%clk 0:00:03.7]} 45... Rxb2 {[%clk
0:00:33.5]} 46. Ne7+ {[%clk 0:00:03.6]} 46... Kd7 {[%clk 0:00:29.9]} 47. Nd5
{[%clk 0:00:04.2]} 47... Ke6 {[%clk 0:00:26.1]} 48. Re3+ {[%clk 0:00:03.7]}
48... Kf5 {[%clk 0:00:25.9]} 49. Ne7+ {[%clk 0:00:02.8]} 49... Kg4 {[%clk
0:00:26.3]} 50. Ke4 {[%clk 0:00:03.1]} 50... Bb6 {[%clk 0:00:24]} 51. Rd3 {[%clk
0:00:02.3]} 51... Re2+ {[%clk 0:00:23.7]} 52. Kd5 {[%clk 0:00:02.7]} 52... Rxe7
{[%clk 0:00:24.3]} 53. Kc6 {[%clk 0:00:02.3]} 53... Re3 {[%clk 0:00:21.9]} 54.
Rd8 {[%clk 0:00:01.8]} 54... Rxg3 {[%clk 0:00:20.3]} 55. Kxb5 {[%clk 0:00:02.1]}
55... Rxa3 {[%clk 0:00:19]} 56. Rg8+ {[%clk 0:00:01.4]} 56... Kxf4 {[%clk
0:00:19.3]} 57. Rg7 {[%clk 0:00:01.4]} 57... Ra1 {[%clk 0:00:18.4]} 58. Kc6
{[%clk 0:00:01.8]} 58... h5 {[%clk 0:00:17.7]} 59. Rh7 {[%clk 0:00:01.6]} 59...
Kg4 {[%clk 0:00:18.1]} 60. Kb7 {[%clk 0:00:01.7]} 60... Kxh4 {[%clk 0:00:17.9]}
61. Rg7 {[%clk 0:00:02]} 61... f5 {[%clk 0:00:17.8]} 62. Rg2 {[%clk 0:00:01.9]}
62... f4 {[%clk 0:00:18.1]} 63. Re2 {[%clk 0:00:02]} 63... f3 {[%clk 0:00:18.4]}
64. Re7 {[%clk 0:00:01.3]} 64... f2 {[%clk 0:00:18.3]} 65. Re6 {[%clk
0:00:01.8]} 65... f1=Q {[%clk 0:00:18.4]} 66. Rc6 {[%clk 0:00:01.5]} 66... a3
{[%clk 0:00:18.6]} 0-1

[Event "Early-Titled-Tuesday-Blitz-October-10-2023"]
[Site "Chess.com"]
[Date "2023.10.10"]
[Round "4"]
[White "ajedrezhoy"]
[Black "boasovietica"]
[Result "1/2-1/2"]
[WhiteElo "2375"]
[BlackElo "2520"]
[TimeControl "180+1"]
[EndTime "8:39:24 PDT"]
[Termination "Game drawn by stalemate"]

1. c4 {[%clk 0:02:52.6]} 1... c5 {[%clk 0:02:59.4]} 2. Nc3 {[%clk 0:02:50.4]}
2... Nc6 {[%clk 0:02:59.1]} 3. g3 {[%clk 0:02:48.7]} 3... e5 {[%clk 0:02:58.1]}
4. Bg2 {[%clk 0:02:47.7]} 4... g6 {[%clk 0:02:57.7]} 5. e4 {[%clk 0:02:47.7]}
5... Bg7 {[%clk 0:02:57.2]} 6. Nge2 {[%clk 0:02:47.9]} 6... d6 {[%clk
0:02:57.1]} 7. O-O {[%clk 0:02:48]} 7... Nge7 {[%clk 0:02:56.9]} 8. d3 {[%clk
0:02:47.9]} 8... O-O {[%clk 0:02:57.5]} 9. Rb1 {[%clk 0:02:45.4]} 9... a5 {[%clk
0:02:55]} 10. a3 {[%clk 0:02:45.2]} 10... Rb8 {[%clk 0:02:54.8]} 11. Be3 {[%clk
0:02:44.4]} 11... f5 {[%clk 0:02:44.7]} 12. Bg5 {[%clk 0:02:28]} 12... Bf6
{[%clk 0:02:26.6]} 13. Bxf6 {[%clk 0:02:19.7]} 13... Rxf6 {[%clk 0:02:26.7]} 14.
f4 {[%clk 0:02:18.2]} 14... Be6 {[%clk 0:02:10.8]} 15. Nd5 {[%clk 0:02:14.5]}
15... Rf8 {[%clk 0:02:01.7]} 16. Nec3 {[%clk 0:01:57.2]} 16... Qd7 {[%clk
0:01:43.7]} 17. b4 {[%clk 0:01:51.4]} 17... axb4 {[%clk 0:01:43.2]} 18. axb4
{[%clk 0:01:50.8]} 18... Bxd5 {[%clk 0:01:42.1]} 19. exd5 {[%clk 0:01:36.3]}
19... Nxb4 {[%clk 0:01:39.1]} 20. fxe5 {[%clk 0:01:36.3]} 20... dxe5 {[%clk
0:01:37.7]} 21. Re1 {[%clk 0:01:32.2]} 21... e4 {[%clk 0:01:29.1]} 22. dxe4
{[%clk 0:01:31]} 22... fxe4 {[%clk 0:01:28.5]} 23. Nxe4 {[%clk 0:01:30.3]} 23...
b6 {[%clk 0:01:27.3]} 24. Qd2 {[%clk 0:01:18.4]} 24... Nf5 {[%clk 0:01:25.2]}
25. Bh3 {[%clk 0:01:07.7]} 25... Qg7 {[%clk 0:01:07.8]} 26. Bxf5 {[%clk
0:01:01.6]} 26... gxf5 {[%clk 0:01:07.4]} 27. Ng5 {[%clk 0:00:56.2]} 27... Rf6
{[%clk 0:00:35.5]} 28. Ne6 {[%clk 0:00:53.4]} 28... Qg4 {[%clk 0:00:30.5]} 29.
Rf1 {[%clk 0:00:49.3]} 29... Ra8 {[%clk 0:00:25.6]} 30. Rf4 {[%clk 0:00:47.8]}
30... Qg6 {[%clk 0:00:25.5]} 31. Rxb4 {[%clk 0:00:40.6]} 31... cxb4 {[%clk
0:00:25.2]} 32. Qxb4 {[%clk 0:00:40.7]} 32... Rxe6 {[%clk 0:00:20.7]} 33. dxe6
{[%clk 0:00:40.3]} 33... Qxe6 {[%clk 0:00:21.4]} 34. Qd2 {[%clk 0:00:27.9]}
34... Ra1+ {[%clk 0:00:15]} 35. Kg2 {[%clk 0:00:27.6]} 35... Qc6+ {[%clk
0:00:14.7]} 36. Qd5+ {[%clk 0:00:26.9]} 36... Qxd5+ {[%clk 0:00:13.2]} 37. cxd5
{[%clk 0:00:26.7]} 37... Rd1 {[%clk 0:00:10.1]} 38. Rxf5 {[%clk 0:00:26.4]}
38... b5 {[%clk 0:00:10.6]} 39. Kf2 {[%clk 0:00:26.5]} 39... Rd2+ {[%clk
0:00:09.5]} 40. Ke3 {[%clk 0:00:24.4]} 40... Rxh2 {[%clk 0:00:09.4]} 41. Rf6
{[%clk 0:00:21.5]} 41... Rh3 {[%clk 0:00:07.7]} 42. Kf3 {[%clk 0:00:20.5]} 42...
Rh1 {[%clk 0:00:07.2]} 43. Rb6 {[%clk 0:00:20.3]} 43... Rb1 {[%clk 0:00:07]} 44.
d6 {[%clk 0:00:19.2]} 44... Kf7 {[%clk 0:00:07.1]} 45. Ke4 {[%clk 0:00:19.2]}
45... Ke6 {[%clk 0:00:07.6]} 46. Kd4 {[%clk 0:00:19]} 46... Rd1+ {[%clk
0:00:07.8]} 47. Kc5 {[%clk 0:00:18.7]} 47... Rd5+ {[%clk 0:00:07.8]} 48. Kb4
{[%clk 0:00:15.7]} 48... Rxd6 {[%clk 0:00:07.8]} 49. Rxb5 {[%clk 0:00:15.9]}
49... Rd4+ {[%clk 0:00:07.5]} 50. Kc3 {[%clk 0:00:15.7]} 50... Rg4 {[%clk
0:00:08]} 51. Rh5 {[%clk 0:00:14.2]} 51... Rxg3+ {[%clk 0:00:07.8]} 52. Kd2
{[%clk 0:00:14.5]} 52... Rg7 {[%clk 0:00:07.5]} 53. Ke3 {[%clk 0:00:14.3]} 53...
Rf7 {[%clk 0:00:07.9]} 54. Ke4 {[%clk 0:00:13.7]} 54... Ke7 {[%clk 0:00:08.5]}
55. Ke5 {[%clk 0:00:12.7]} 55... Kf8 {[%clk 0:00:08.8]} 56. Rh1 {[%clk
0:00:10.8]} 56... Kg7 {[%clk 0:00:08.8]} 57. Rg1+ {[%clk 0:00:10.5]} 57... Kh8
{[%clk 0:00:08.9]} 58. Rh1 {[%clk 0:00:08.5]} 58... Rf2 {[%clk 0:00:08.9]} 59.
Ke4 {[%clk 0:00:08.2]} 59... Kg7 {[%clk 0:00:08.8]} 60. Ke3 {[%clk 0:00:08.2]}
60... Rf6 {[%clk 0:00:07.6]} 61. Ke2 {[%clk 0:00:07.3]} 61... h6 {[%clk
0:00:07.1]} 62. Rf1 {[%clk 0:00:06.8]} 62... Rg6 {[%clk 0:00:04.2]} 63. Kf2
{[%clk 0:00:06.5]} 63... h5 {[%clk 0:00:04.6]} 64. Rg1 {[%clk 0:00:06.5]} 64...
Kh6 {[%clk 0:00:05]} 65. Rxg6+ {[%clk 0:00:06.2]} 65... Kxg6 {[%clk 0:00:05.9]}
66. Kg3 {[%clk 0:00:06.3]} 66... Kg5 {[%clk 0:00:06.4]} 67. Kh2 {[%clk
0:00:06.4]} 67... h4 {[%clk 0:00:07.2]} 68. Kh1 {[%clk 0:00:06.7]} 68... Kg4
{[%clk 0:00:07.6]} 69. Kh2 {[%clk 0:00:07]} 69... h3 {[%clk 0:00:08.1]} 70. Kh1
{[%clk 0:00:07.1]} 70... Kg3 {[%clk 0:00:08.8]} 71. Kg1 {[%clk 0:00:07.4]} 71...
h2+ {[%clk 0:00:09.5]} 72. Kh1 {[%clk 0:00:07.6]} 72... Kh3 {[%clk 0:00:10.2]}
1/2-1/2